[Event "Live Chess"]
[Site "Chess.com"]
[Date "2023.09.16"]
[Round "-"]
[White "Jonas_Rodrigues"]
[Black "GilbertoGOFaria"]
[Result "0-1"]
[WhiteElo "1273"]
[BlackElo "1639"]
[TimeControl "900+5"]
[EndTime "16:44:51 PDT"]
[Termination "GilbertoGOFaria venceu por desistência"]

1. e4 {[%clk 0:15:03.5]} 1... c5 {[%clk 0:15:04]} 2. d4 {[%clk 0:15:07.1]} 2...
cxd4 {[%clk 0:15:07.1]} 3. Nf3 {[%clk 0:15:11.7]} 3... d6 {[%clk 0:14:58.8]} 4.
c3 {[%clk 0:15:14.1]} 4... dxc3 {[%clk 0:15:02.6]} 5. Bc4 {[%clk 0:15:17.5]}
5... g6 {[%clk 0:15:02.4]} 6. Nxc3 {[%clk 0:15:20.7]} 6... Bg7 {[%clk
0:15:06.8]} 7. O-O {[%clk 0:15:20.3]} 7... Nc6 {[%clk 0:15:10.8]} 8. Ng5 {[%clk
0:15:15.5]} 8... e6 {[%clk 0:15:12.1]} 9. Qf3 {[%clk 0:15:15.4]} 9... Ne5 {[%clk
0:15:11]} 10. Bb5+ {[%clk 0:15:13.2]} 10... Bd7 {[%clk 0:15:13.7]} 11. Bxd7+
{[%clk 0:15:16.9]} 11... Qxd7 {[%clk 0:15:18.6]} 12. Qg3 {[%clk 0:15:13.2]}
12... Nf6 {[%clk 0:14:41.8]} 13. f4 {[%clk 0:15:16.2]} 13... Nc6 {[%clk
0:14:44.5]} 14. e5 {[%clk 0:15:15.7]} 14... dxe5 {[%clk 0:14:37.4]} 15. fxe5
{[%clk 0:15:17.8]} 15... Nh5 {[%clk 0:14:41.6]} 16. Qf3 {[%clk 0:15:19]} 16...
Nxe5 {[%clk 0:14:41.6]} 17. Qe4 {[%clk 0:14:57.4]} 17... O-O {[%clk 0:14:18]}
18. Be3 {[%clk 0:14:54.8]} 18... Qd3 {[%clk 0:13:26.6]} 19. Rad1 {[%clk
0:14:38.9]} 19... Qxe4 {[%clk 0:13:21]} 20. Ncxe4 {[%clk 0:14:40.3]} 20... h6
{[%clk 0:13:14.2]} 21. g4 {[%clk 0:14:35.4]} 21... Nxg4 {[%clk 0:12:54.1]} 22.
Bc5 {[%clk 0:14:31.9]} 22... Be5 {[%clk 0:08:17]} 23. Nf3 {[%clk 0:13:59.5]}
23... Rfd8 {[%clk 0:07:52.9]} 24. Nxe5 {[%clk 0:13:56.3]} 24... Nxe5 {[%clk
0:07:51.8]} 25. Be7 {[%clk 0:13:49.9]} 25... Rxd1 {[%clk 0:07:41.4]} 26. Rxd1
{[%clk 0:13:54.8]} 26... Nf4 {[%clk 0:06:01.6]} 27. Nf6+ {[%clk 0:13:52.6]}
27... Kg7 {[%clk 0:06:00.3]} 28. Ne4 {[%clk 0:13:51.4]} 28... Nd5 {[%clk
0:05:53]} 29. Bd6 {[%clk 0:13:50.7]} 29... Nc4 {[%clk 0:05:26.5]} 30. Rc1 {[%clk
0:13:44.4]} 30... Nxd6 {[%clk 0:05:26.8]} 31. Nxd6 {[%clk 0:13:48]} 31... b6
{[%clk 0:05:27.5]} 32. a4 {[%clk 0:13:46.6]} 32... Rd8 {[%clk 0:05:27.9]} 33.
Nb7 {[%clk 0:13:48.8]} 33... Rd7 {[%clk 0:05:06.5]} 0-1

[Event "Live Chess"]
[Site "Chess.com"]
[Date "2023.09.16"]
[Round "-"]
[White "Tercette"]
[Black "Miinero"]
[Result "0-1"]
[WhiteElo "276"]
[BlackElo "1904"]
[TimeControl "900+5"]
[EndTime "16:45:04 PDT"]
[Termination "Miinero venceu por xeque-mate"]

1. Nf3 {[%clk 0:15:00.5]} 1... e5 {[%clk 0:14:38.9]} 2. e4 {[%clk 0:14:59.9]}
2... Nc6 {[%clk 0:14:42.3]} 3. Bc4 {[%clk 0:15:00.6]} 3... Bc5 {[%clk
0:14:46.1]} 4. Na3 {[%clk 0:15:01.1]} 4... Nf6 {[%clk 0:14:48.9]} 5. Nb5 {[%clk
0:15:03.8]} 5... O-O {[%clk 0:14:51.3]} 6. O-O {[%clk 0:15:07.3]} 6... a6 {[%clk
0:14:53.2]} 7. Nc3 {[%clk 0:15:07.7]} 7... d6 {[%clk 0:14:56.1]} 8. d3 {[%clk
0:15:08.7]} 8... Bg4 {[%clk 0:14:59.9]} 9. Qe2 {[%clk 0:15:08.9]} 9... Nd4
{[%clk 0:15:03.4]} 10. Qe1 {[%clk 0:15:10.1]} 10... Bxf3 {[%clk 0:15:06.4]} 11.
gxf3 {[%clk 0:15:08.9]} 11... Nxf3+ {[%clk 0:15:11.3]} 12. Kh1 {[%clk
0:15:02.5]} 12... Nxe1 {[%clk 0:15:16.2]} 13. Rxe1 {[%clk 0:15:05.6]} 13... Ng4
{[%clk 0:15:17.6]} 14. Nd5 {[%clk 0:15:08.3]} 14... Qh4 {[%clk 0:15:20.7]} 15.
Ne7+ {[%clk 0:15:03.3]} 15... Kh8 {[%clk 0:15:23.7]} 16. Nf5 {[%clk 0:15:05.7]}
16... Qxh2# {[%clk 0:15:27.2]} 0-1

[Event "Live Chess"]
[Site "Chess.com"]
[Date "2023.09.16"]
[Round "-"]
[White "angelinho2006"]
[Black "stopgivingup"]
[Result "1-0"]
[WhiteElo "2077"]
[BlackElo "975"]
[TimeControl "900+5"]
[EndTime "16:45:19 PDT"]
[Termination "angelinho2006 venceu por desistência"]

1. e4 {[%clk 0:15:03.5]} 1... c5 {[%clk 0:15:02.7]} 2. Nf3 {[%clk 0:15:07.6]}
2... d6 {[%clk 0:15:05.2]} 3. Bc4 {[%clk 0:15:08.2]} 3... Nf6 {[%clk 0:14:57.5]}
4. d3 {[%clk 0:15:02.2]} 4... Nc6 {[%clk 0:14:57.4]} 5. O-O {[%clk 0:15:06.4]}
5... e6 {[%clk 0:14:41.3]} 6. c3 {[%clk 0:14:33]} 6... h6 {[%clk 0:14:12.2]} 7.
Re1 {[%clk 0:14:34.7]} 7... Be7 {[%clk 0:14:10.2]} 8. d4 {[%clk 0:14:38.6]} 8...
cxd4 {[%clk 0:14:12.8]} 9. cxd4 {[%clk 0:14:42.8]} 9... d5 {[%clk 0:14:02.4]}
10. exd5 {[%clk 0:14:43]} 10... exd5 {[%clk 0:14:03.7]} 11. Bd3 {[%clk
0:14:45.4]} 11... Be6 {[%clk 0:13:42.7]} 12. Nc3 {[%clk 0:14:48.5]} 12... a6
{[%clk 0:13:42]} 13. Bf4 {[%clk 0:14:50.2]} 13... Bd6 {[%clk 0:13:15.3]} 14. Be5
{[%clk 0:14:40.9]} 14... O-O {[%clk 0:12:51.2]} 15. Qb3 {[%clk 0:14:36.5]} 15...
Nb4 {[%clk 0:12:02.3]} 16. Bb1 {[%clk 0:14:34.2]} 16... Qe7 {[%clk 0:11:37.4]}
17. a3 {[%clk 0:14:06.8]} 17... Nc6 {[%clk 0:10:39.9]} 18. Qc2 {[%clk
0:13:56.6]} 18... g6 {[%clk 0:09:23.6]} 19. Qd2 {[%clk 0:13:56.5]} 19... Kg7
{[%clk 0:08:25.2]} 20. h4 {[%clk 0:13:46.7]} 20... Bxe5 {[%clk 0:07:57.4]} 21.
dxe5 {[%clk 0:13:35.6]} 21... Nh5 {[%clk 0:07:11]} 22. Nxd5 {[%clk 0:13:39]}
22... Bxd5 {[%clk 0:07:11.3]} 23. Qxd5 {[%clk 0:13:41]} 23... Rad8 {[%clk
0:07:08.4]} 24. Qb3 {[%clk 0:13:44.7]} 24... Rfe8 {[%clk 0:06:59.3]} 25. Qc3
{[%clk 0:13:44.6]} 25... Qc7 {[%clk 0:06:22.6]} 26. Ba2 {[%clk 0:13:31.2]} 26...
Rd7 {[%clk 0:06:16.9]} 27. e6+ {[%clk 0:13:33.4]} 27... f6 {[%clk 0:06:02.2]}
28. exd7 {[%clk 0:13:36.9]} 28... Qxd7 {[%clk 0:06:05.2]} 29. Rxe8 {[%clk
0:13:39.9]} 29... Qxe8 {[%clk 0:06:08.5]} 30. Re1 {[%clk 0:13:44]} 1-0

[Event "Live Chess"]
[Site "Chess.com"]
[Date "2023.09.16"]
[Round "-"]
[White "Larissa1413"]
[Black "Gabriel0298"]
[Result "1-0"]
[WhiteElo "1920"]
[BlackElo "1605"]
[TimeControl "900+5"]
[EndTime "16:45:51 PDT"]
[Termination "Larissa1413 venceu por desistência"]

1. d4 {[%clk 0:14:37.6]} 1... e6 {[%clk 0:15:04.9]} 2. c4 {[%clk 0:14:37.3]}
2... d5 {[%clk 0:15:09.8]} 3. Nc3 {[%clk 0:14:38.6]} 3... Nf6 {[%clk 0:15:13.1]}
4. cxd5 {[%clk 0:14:40.3]} 4... exd5 {[%clk 0:15:15.9]} 5. Bg5 {[%clk
0:14:42.5]} 5... Bb4 {[%clk 0:15:19.4]} 6. e3 {[%clk 0:14:40]} 6... h6 {[%clk
0:15:23.1]} 7. Bh4 {[%clk 0:14:42.7]} 7... g5 {[%clk 0:15:26.8]} 8. Bg3 {[%clk
0:14:43.6]} 8... Ne4 {[%clk 0:15:31.2]} 9. Qc2 {[%clk 0:14:43.7]} 9... Bf5
{[%clk 0:15:34.3]} 10. Bd3 {[%clk 0:14:44.9]} 10... Nd7 {[%clk 0:15:25.5]} 11.
Ne2 {[%clk 0:14:45.6]} 11... Ndf6 {[%clk 0:15:28.8]} 12. O-O {[%clk 0:14:46.7]}
12... Bxc3 {[%clk 0:15:32.5]} 13. Nxc3 {[%clk 0:14:47.7]} 13... Qd7 {[%clk
0:15:35.9]} 14. Be5 {[%clk 0:14:45.6]} 14... Bg6 {[%clk 0:14:47.6]} 15. Nxe4
{[%clk 0:14:40.3]} 15... dxe4 {[%clk 0:14:49.4]} 16. Bc4 {[%clk 0:14:34.5]}
16... Qe7 {[%clk 0:14:45.3]} 17. Qa4+ {[%clk 0:14:31.9]} 17... c6 {[%clk
0:14:48.3]} 18. d5 {[%clk 0:14:31.3]} 18... b5 {[%clk 0:14:51.9]} 19. Bxb5
{[%clk 0:14:33.4]} 19... cxb5 {[%clk 0:14:56.2]} 20. Qxb5+ {[%clk 0:14:35.9]}
20... Qd7 {[%clk 0:15:00.5]} 21. Qxd7+ {[%clk 0:14:35.9]} 21... Kxd7 {[%clk
0:14:58.3]} 22. Bxf6 {[%clk 0:14:38.6]} 22... Rab8 {[%clk 0:15:02.6]} 23. Bxh8
{[%clk 0:14:40.3]} 23... Rxh8 {[%clk 0:15:06.6]} 1-0

[Event "Live Chess"]
[Site "Chess.com"]
[Date "2023.09.16"]
[Round "-"]
[White "Japaawz"]
[Black "Capi-D-Vara"]
[Result "0-1"]
[WhiteElo "397"]
[BlackElo "1278"]
[TimeControl "900+5"]
[EndTime "16:46:17 PDT"]
[Termination "Capi-D-Vara venceu por desistência"]

1. e4 {[%clk 0:15:02.3]} 1... c5 {[%clk 0:15:03.7]} 2. d3 {[%clk 0:15:05.7]}
2... Nc6 {[%clk 0:15:03.7]} 3. Na3 {[%clk 0:14:44.8]} 3... a6 {[%clk 0:14:58.7]}
4. Nc4 {[%clk 0:14:45.3]} 4... b5 {[%clk 0:14:58.9]} 5. Ne3 {[%clk 0:14:47.2]}
5... g6 {[%clk 0:14:53.6]} 6. g3 {[%clk 0:14:50.7]} 6... Bg7 {[%clk 0:14:45.2]}
7. Bh3 {[%clk 0:14:53.6]} 7... Nf6 {[%clk 0:14:35.2]} 8. Nf3 {[%clk 0:14:54.5]}
8... Nd4 {[%clk 0:14:18.9]} 9. O-O {[%clk 0:14:49.6]} 9... d6 {[%clk 0:13:47.4]}
10. Qd2 {[%clk 0:14:48.6]} 10... Bxh3 {[%clk 0:13:49.1]} 11. Rd1 {[%clk
0:14:46.2]} 11... Nxf3+ {[%clk 0:13:52.7]} 0-1

[Event "Live Chess"]
[Site "Chess.com"]
[Date "2023.09.16"]
[Round "-"]
[White "samurai0718"]
[Black "Frogstetic"]
[Result "0-1"]
[WhiteElo "1347"]
[BlackElo "2000"]
[TimeControl "900+5"]
[EndTime "16:46:23 PDT"]
[Termination "Frogstetic venceu por desistência"]

1. e4 {[%clk 0:15:03.1]} 1... e6 {[%clk 0:15:03.2]} 2. Nf3 {[%clk 0:15:06.7]}
2... d5 {[%clk 0:15:08.1]} 3. exd5 {[%clk 0:15:10.6]} 3... exd5 {[%clk 0:15:13]}
4. d4 {[%clk 0:15:13.3]} 4... Nf6 {[%clk 0:15:16.4]} 5. Bd3 {[%clk 0:15:16.6]}
5... Bd6 {[%clk 0:15:19.3]} 6. Bg5 {[%clk 0:15:20.6]} 6... O-O {[%clk
0:15:22.6]} 7. O-O {[%clk 0:15:22.7]} 7... h6 {[%clk 0:15:25.5]} 8. Nc3 {[%clk
0:15:19.9]} 8... hxg5 {[%clk 0:15:22.9]} 9. Nxg5 {[%clk 0:15:23.8]} 9... c6
{[%clk 0:15:25.9]} 10. Bh7+ {[%clk 0:15:21.3]} 10... Nxh7 {[%clk 0:15:29.2]} 11.
Nxh7 {[%clk 0:15:22.8]} 11... Kxh7 {[%clk 0:15:34.1]} 12. Qh5+ {[%clk
0:15:26.3]} 12... Kg8 {[%clk 0:15:37.5]} 13. Rfe1 {[%clk 0:15:30.7]} 13... g6
{[%clk 0:15:37.1]} 14. Qh6 {[%clk 0:15:34.6]} 14... Qf6 {[%clk 0:15:39.8]} 15.
Re3 {[%clk 0:15:37.5]} 15... Qg7 {[%clk 0:15:43.8]} 16. Qg5 {[%clk 0:15:38.5]}
16... Qh7 {[%clk 0:15:36.3]} 17. Rh3 {[%clk 0:15:40]} 17... Bxh3 {[%clk
0:15:40.2]} 18. gxh3 {[%clk 0:15:43.7]} 0-1

[Event "Live Chess"]
[Site "Chess.com"]
[Date "2023.09.16"]
[Round "-"]
[White "Joasgodoy"]
[Black "FerreiraPedro"]
[Result "0-1"]
[WhiteElo "678"]
[BlackElo "1398"]
[TimeControl "900+5"]
[EndTime "16:46:43 PDT"]
[Termination "FerreiraPedro venceu por xeque-mate"]

1. e4 {[%clk 0:14:44.2]} 1... e5 {[%clk 0:15:02.9]} 2. Nf3 {[%clk 0:13:50.9]}
2... Nf6 {[%clk 0:15:06.3]} 3. Nxe5 {[%clk 0:13:28.4]} 3... d6 {[%clk 0:15:07]}
4. Nf3 {[%clk 0:13:29.3]} 4... Nxe4 {[%clk 0:15:10.9]} 5. Bd3 {[%clk 0:13:19.7]}
5... d5 {[%clk 0:15:13.7]} 6. Nc3 {[%clk 0:12:43.8]} 6... Nxc3 {[%clk
0:15:15.3]} 7. bxc3 {[%clk 0:12:35.1]} 7... Bd6 {[%clk 0:15:16.4]} 8. O-O {[%clk
0:12:35.3]} 8... O-O {[%clk 0:15:16]} 9. Re1 {[%clk 0:12:11.8]} 9... Bg4 {[%clk
0:15:17.9]} 10. c4 {[%clk 0:12:10.6]} 10... dxc4 {[%clk 0:15:13.9]} 11. Bxc4
{[%clk 0:12:11.4]} 11... Qf6 {[%clk 0:15:18]} 12. h3 {[%clk 0:12:09.9]} 12...
Bxf3 {[%clk 0:15:19]} 13. Qxf3 {[%clk 0:11:43.7]} 13... Qxf3 {[%clk 0:15:22.5]}
14. gxf3 {[%clk 0:11:42.7]} 14... Nc6 {[%clk 0:15:26.6]} 15. Kh1 {[%clk
0:11:43]} 15... Rfe8 {[%clk 0:15:31]} 16. Bb2 {[%clk 0:11:40.1]} 16... Be5
{[%clk 0:15:29.6]} 17. Be2 {[%clk 0:11:37.6]} 17... Bxb2 {[%clk 0:15:31.8]} 18.
Bb5 {[%clk 0:11:34.2]} 18... Rxe1+ {[%clk 0:15:34.9]} 19. Rxe1 {[%clk
0:11:35.6]} 19... Kf8 {[%clk 0:15:38.7]} 20. Bxc6 {[%clk 0:11:25.4]} 20... bxc6
{[%clk 0:15:43.6]} 21. c3 {[%clk 0:11:26.8]} 21... Re8 {[%clk 0:15:43.6]} 22.
Rb1 {[%clk 0:11:25.6]} 22... Ba3 {[%clk 0:15:43.3]} 23. Rb7 {[%clk 0:11:26]}
23... Re1+ {[%clk 0:15:46.8]} 24. Kg2 {[%clk 0:11:28.1]} 24... Bd6 {[%clk
0:15:50.7]} 25. Rxa7 {[%clk 0:11:28]} 25... Re2 {[%clk 0:15:55.1]} 26. Ra8+
{[%clk 0:11:21.5]} 26... Ke7 {[%clk 0:15:59]} 27. a4 {[%clk 0:11:19.6]} 27...
Rxd2 {[%clk 0:16:02.7]} 28. a5 {[%clk 0:11:22.1]} 28... Bc5 {[%clk 0:16:03.8]}
29. a6 {[%clk 0:11:25.4]} 29... Rxf2+ {[%clk 0:16:07.5]} 30. Kg3 {[%clk
0:11:27.5]} 30... Ra2 {[%clk 0:16:06.9]} 31. Rc8 {[%clk 0:11:22]} 31... Kd7
{[%clk 0:16:07.1]} 32. Ra8 {[%clk 0:11:09.8]} 32... Bb6 {[%clk 0:16:04.1]} 33.
Kf4 {[%clk 0:11:11.2]} 33... g6 {[%clk 0:16:07.5]} 34. Ke5 {[%clk 0:11:14.3]}
34... f5 {[%clk 0:16:11.6]} 35. Kf6 {[%clk 0:11:15.8]} 35... Rf2 {[%clk
0:16:09.6]} 36. a7 {[%clk 0:11:14.9]} 36... Ra2 {[%clk 0:16:02.6]} 37. Kg7
{[%clk 0:10:46.7]} 37... Rxa7 {[%clk 0:16:04.6]} 38. Rxa7 {[%clk 0:10:47.4]}
38... Bxa7 {[%clk 0:16:09.5]} 39. Kxh7 {[%clk 0:10:49.3]} 39... g5 {[%clk
0:16:14.1]} 40. Kg6 {[%clk 0:10:46]} 40... g4 {[%clk 0:16:14.8]} 41. hxg4 {[%clk
0:10:34.2]} 41... fxg4 {[%clk 0:16:19.7]} 42. fxg4 {[%clk 0:10:36.8]} 42... Be3
{[%clk 0:16:24.6]} 43. Kf5 {[%clk 0:10:23.3]} 43... Bd2 {[%clk 0:16:27.3]} 44.
c4 {[%clk 0:10:25.4]} 44... Kd6 {[%clk 0:16:29.3]} 45. g5 {[%clk 0:10:28.3]}
45... Kc5 {[%clk 0:16:32.7]} 46. g6 {[%clk 0:10:31.4]} 46... Bc3 {[%clk
0:16:37.4]} 47. Ke6 {[%clk 0:10:26.6]} 47... Kxc4 {[%clk 0:16:39.6]} 48. Kd7
{[%clk 0:10:27.6]} 48... c5 {[%clk 0:16:39.9]} 49. Kxc7 {[%clk 0:10:27.2]} 49...
Kd3 {[%clk 0:16:43.8]} 50. Kc6 {[%clk 0:10:28.1]} 50... c4 {[%clk 0:16:47.7]}
51. Kc5 {[%clk 0:10:22.9]} 51... Bg7 {[%clk 0:16:52.1]} 52. Kb4 {[%clk 0:10:20]}
52... c3 {[%clk 0:16:54.4]} 53. Kb3 {[%clk 0:10:23.2]} 53... Kd2 {[%clk
0:16:57.2]} 54. Kc4 {[%clk 0:10:16.5]} 54... c2 {[%clk 0:17:02.1]} 55. Kb3
{[%clk 0:10:17.7]} 55... c1=Q {[%clk 0:17:07]} 56. Ka2 {[%clk 0:10:13.8]} 56...
Qb2# {[%clk 0:17:08.6]} 0-1

[Event "Live Chess"]
[Site "Chess.com"]
[Date "2023.09.16"]
[Round "-"]
[White "CroNmo"]
[Black "abcgames2904"]
[Result "1-0"]
[WhiteElo "1852"]
[BlackElo "1199"]
[TimeControl "900+5"]
[EndTime "16:47:08 PDT"]
[Termination "CroNmo venceu por xeque-mate"]

1. d4 {[%clk 0:15:02.8]} 1... Nf6 {[%clk 0:15:04.5]} 2. c4 {[%clk 0:15:07]} 2...
d5 {[%clk 0:15:08.1]} 3. Nf3 {[%clk 0:15:11.9]} 3... e6 {[%clk 0:15:12.1]} 4.
cxd5 {[%clk 0:15:16.8]} 4... exd5 {[%clk 0:15:16.3]} 5. Nc3 {[%clk 0:15:21.7]}
5... Bb4 {[%clk 0:15:20.7]} 6. e3 {[%clk 0:15:26.6]} 6... Bxc3+ {[%clk
0:15:24.8]} 7. bxc3 {[%clk 0:15:31.5]} 7... b6 {[%clk 0:15:26.5]} 8. Be2 {[%clk
0:15:35.7]} 8... Bb7 {[%clk 0:15:31.4]} 9. a4 {[%clk 0:15:39.9]} 9... a5 {[%clk
0:15:35.3]} 10. Ba3 {[%clk 0:15:44]} 10... c5 {[%clk 0:15:39.3]} 11. dxc5 {[%clk
0:15:47.5]} 11... bxc5 {[%clk 0:15:44]} 12. Bxc5 {[%clk 0:15:51.7]} 12... Nbd7
{[%clk 0:15:45.9]} 13. Bb5 {[%clk 0:15:51.5]} 13... Qc7 {[%clk 0:15:44.7]} 14.
Bd4 {[%clk 0:15:53.2]} 14... O-O {[%clk 0:15:45.8]} 15. O-O {[%clk 0:15:54.1]}
15... Ne4 {[%clk 0:15:49.2]} 16. Rc1 {[%clk 0:15:55.7]} 16... Nd6 {[%clk
0:15:49.3]} 17. Bxd7 {[%clk 0:15:49.7]} 17... Qxd7 {[%clk 0:15:51.7]} 18. Ne5
{[%clk 0:15:54]} 18... Qxa4 {[%clk 0:15:55]} 19. Qxa4 {[%clk 0:15:56.5]} 19...
Nc4 {[%clk 0:15:46.3]} 20. Nxc4 {[%clk 0:16:00.4]} 20... dxc4 {[%clk 0:15:50.3]}
21. Qxc4 {[%clk 0:16:01.9]} 21... Rac8 {[%clk 0:15:55.2]} 22. Qa4 {[%clk
0:16:05.4]} 22... Rfe8 {[%clk 0:15:55.5]} 23. c4 {[%clk 0:16:09.1]} 23... Re6
{[%clk 0:15:59.7]} 24. c5 {[%clk 0:16:13.2]} 24... Ra6 {[%clk 0:16:03]} 25. c6
{[%clk 0:16:17]} 25... Bxc6 {[%clk 0:16:04.3]} 26. Rxc6 {[%clk 0:16:20.9]} 26...
Raxc6 {[%clk 0:16:08.1]} 27. Bb2 {[%clk 0:16:23.2]} 27... Rc2 {[%clk 0:16:09.7]}
28. Rb1 {[%clk 0:16:17.2]} 28... h6 {[%clk 0:16:11.1]} 29. h3 {[%clk 0:16:21.1]}
29... Rxb2 {[%clk 0:16:14.3]} 30. Rxb2 {[%clk 0:16:24.9]} 30... Rc1+ {[%clk
0:16:15.5]} 31. Kh2 {[%clk 0:16:29.4]} 31... Rf1 {[%clk 0:16:17.3]} 32. Rb8+
{[%clk 0:16:32.9]} 32... Kh7 {[%clk 0:16:21.3]} 33. Qe4+ {[%clk 0:16:37.6]}
33... g6 {[%clk 0:16:25.2]} 34. Qe5 {[%clk 0:16:39.6]} 34... g5 {[%clk
0:16:26.7]} 35. Qf6 {[%clk 0:16:42]} 35... a4 {[%clk 0:16:30.1]} 36. Qxf7#
{[%clk 0:16:46.5]} 1-0

[Event "Live Chess"]
[Site "Chess.com"]
[Date "2023.09.16"]
[Round "-"]
[White "Jonas_Rodrigues"]
[Black "Tercette"]
[Result "1-0"]
[WhiteElo "1273"]
[BlackElo "276"]
[TimeControl "900+5"]
[EndTime "16:47:49 PDT"]
[Termination "Jonas_Rodrigues venceu por xeque-mate"]

1. e4 {[%clk 0:15:03.9]} 1... e5 {[%clk 0:15:02.7]} 2. f4 {[%clk 0:15:06.7]}
2... Nf6 {[%clk 0:15:05.9]} 3. fxe5 {[%clk 0:15:03.5]} 3... Nxe4 {[%clk
0:15:09.5]} 4. Bd3 {[%clk 0:15:06.9]} 4... Qh4+ {[%clk 0:15:12]} 5. g3 {[%clk
0:15:06.6]} 5... Qd8 {[%clk 0:15:10.1]} 6. Bxe4 {[%clk 0:15:09.3]} 6... Nc6
{[%clk 0:15:13.8]} 7. Nf3 {[%clk 0:15:11.1]} 7... Be7 {[%clk 0:15:15.5]} 8. O-O
{[%clk 0:15:14.9]} 8... O-O {[%clk 0:15:19.3]} 9. d4 {[%clk 0:15:17.2]} 9...
Nxd4 {[%clk 0:15:21.9]} 10. Nxd4 {[%clk 0:15:20.8]} 10... c5 {[%clk 0:15:24.8]}
11. Nf5 {[%clk 0:15:22.7]} 11... d6 {[%clk 0:15:25.2]} 12. Nxe7+ {[%clk
0:15:20.9]} 12... Qxe7 {[%clk 0:15:24.7]} 13. Qd3 {[%clk 0:15:23.2]} 13... Qxe5
{[%clk 0:15:27.4]} 14. Bxh7+ {[%clk 0:15:26.6]} 14... Kh8 {[%clk 0:15:27.7]} 15.
Nc3 {[%clk 0:15:25.7]} 15... Qd4+ {[%clk 0:15:29.5]} 16. Be3 {[%clk 0:15:21.2]}
16... Qe5 {[%clk 0:15:26.8]} 17. Rf5 {[%clk 0:15:19.3]} 17... Qe7 {[%clk
0:15:27.3]} 18. Rh5 {[%clk 0:15:18.1]} 18... Re8 {[%clk 0:15:30.5]} 19. Bg8+
{[%clk 0:15:12.7]} 19... Kxg8 {[%clk 0:15:30.6]} 20. Qh7+ {[%clk 0:15:16.9]}
20... Kf8 {[%clk 0:15:29.8]} 21. Qh8# {[%clk 0:15:21.8]} 1-0

[Event "Live Chess"]
[Site "Chess.com"]
[Date "2023.09.16"]
[Round "-"]
[White "ViniciusBritoFc"]
[Black "GustavoFarinha"]
[Result "0-1"]
[WhiteElo "1205"]
[BlackElo "1694"]
[TimeControl "900+5"]
[EndTime "16:48:25 PDT"]
[Termination "GustavoFarinha venceu por xeque-mate"]

1. c4 {[%clk 0:15:02.9]} 1... Nf6 {[%clk 0:15:02.1]} 2. Nc3 {[%clk 0:15:07]}
2... g6 {[%clk 0:15:06.5]} 3. e4 {[%clk 0:15:10.4]} 3... d6 {[%clk 0:15:07.9]}
4. d4 {[%clk 0:15:13]} 4... Bg7 {[%clk 0:15:11.8]} 5. e5 {[%clk 0:15:16.8]} 5...
dxe5 {[%clk 0:15:15.4]} 6. dxe5 {[%clk 0:15:21.7]} 6... Nfd7 {[%clk 0:15:18.8]}
7. Nf3 {[%clk 0:15:25.3]} 7... O-O {[%clk 0:15:19.4]} 8. Qe2 {[%clk 0:15:23.3]}
8... b6 {[%clk 0:15:18.5]} 9. Be3 {[%clk 0:15:21.5]} 9... Nxe5 {[%clk
0:15:14.1]} 10. Nxe5 {[%clk 0:15:26.4]} 10... Bxe5 {[%clk 0:15:17.7]} 11. Qd2
{[%clk 0:15:28.8]} 11... Qxd2+ {[%clk 0:15:18.5]} 12. Bxd2 {[%clk 0:15:33.7]}
12... Bb7 {[%clk 0:15:21.2]} 13. f3 {[%clk 0:15:23.8]} 13... Nc6 {[%clk
0:15:15]} 14. O-O-O {[%clk 0:15:24.4]} 14... a5 {[%clk 0:15:01.4]} 15. Be2
{[%clk 0:15:22.2]} 15... Nd4 {[%clk 0:15:01.9]} 16. Rhe1 {[%clk 0:15:23]} 16...
Nxe2+ {[%clk 0:14:09.5]} 17. Rxe2 {[%clk 0:15:23.2]} 17... Bxh2 {[%clk
0:13:59.2]} 18. Rxe7 {[%clk 0:15:26.3]} 18... Bd6 {[%clk 0:14:01.2]} 19. Re2
{[%clk 0:15:23.8]} 19... a4 {[%clk 0:13:50.5]} 20. a3 {[%clk 0:15:22]} 20...
Rfe8 {[%clk 0:13:25.4]} 21. Rxe8+ {[%clk 0:15:23.8]} 21... Rxe8 {[%clk
0:13:28.4]} 22. Nd5 {[%clk 0:15:28.4]} 22... Bxd5 {[%clk 0:12:25.4]} 23. cxd5
{[%clk 0:15:29.4]} 23... Re2 {[%clk 0:12:24.7]} 24. Rg1 {[%clk 0:15:08.4]} 24...
Bc5 {[%clk 0:12:16.3]} 25. Re1 {[%clk 0:15:06.9]} 25... Rxg2 {[%clk 0:12:19.4]}
26. Bc3 {[%clk 0:15:10.3]} 26... f5 {[%clk 0:12:04.2]} 27. Re8+ {[%clk
0:15:10.1]} 27... Kf7 {[%clk 0:12:07.5]} 28. Rc8 {[%clk 0:15:07.4]} 28... Bd6
{[%clk 0:12:06.4]} 29. Bb4 {[%clk 0:15:08.1]} 29... Ke7 {[%clk 0:11:58.3]} 30.
Bxd6+ {[%clk 0:15:11.1]} 30... Kxd6 {[%clk 0:12:02.3]} 31. Rd8+ {[%clk
0:15:14.2]} 31... Ke7 {[%clk 0:12:04.1]} 32. Rc8 {[%clk 0:15:18.4]} 32... Kd7
{[%clk 0:12:07.6]} 33. Rh8 {[%clk 0:15:22.1]} 33... Rh2 {[%clk 0:12:10.7]} 34.
Rg8 {[%clk 0:15:25.6]} 34... Rh3 {[%clk 0:12:05.8]} 35. Rg7+ {[%clk 0:15:29.3]}
35... Kd6 {[%clk 0:12:08.5]} 36. f4 {[%clk 0:15:31.4]} 36... Rh4 {[%clk
0:12:01.3]} 37. Kc2 {[%clk 0:15:27.1]} 37... c5 {[%clk 0:11:56]} 38. dxc6 {[%clk
0:15:28]} 38... Kxc6 {[%clk 0:12:00.5]} 39. b4 {[%clk 0:15:28.2]} 39... axb3+
{[%clk 0:12:03.3]} 40. Kxb3 {[%clk 0:15:33.1]} 40... Rxf4 {[%clk 0:12:02.3]} 41.
Rxh7 {[%clk 0:15:37.1]} 41... Rg4 {[%clk 0:12:06.9]} 42. Rh6 {[%clk 0:15:40.7]}
42... f4 {[%clk 0:12:10.4]} 43. a4 {[%clk 0:15:43.8]} 43... f3 {[%clk
0:12:14.4]} 44. Rh1 {[%clk 0:15:46.1]} 44... f2 {[%clk 0:12:15.4]} 45. Rc1+
{[%clk 0:15:48.7]} 45... Kd5 {[%clk 0:12:15]} 46. Rd1+ {[%clk 0:15:51.7]} 46...
Ke4 {[%clk 0:12:18.1]} 47. Rf1 {[%clk 0:15:54]} 47... Rg2 {[%clk 0:12:18.2]} 48.
Kb4 {[%clk 0:15:56]} 48... Ke3 {[%clk 0:12:22.3]} 49. Kb5 {[%clk 0:15:58.9]}
49... Rg1 {[%clk 0:12:21.8]} 50. Rxf2 {[%clk 0:15:57.9]} 50... Kxf2 {[%clk
0:12:26.7]} 51. Kxb6 {[%clk 0:16:02.5]} 51... Ra1 {[%clk 0:12:27.9]} 52. Ka5
{[%clk 0:16:04.1]} 52... g5 {[%clk 0:12:32.3]} 53. Kb5 {[%clk 0:16:08]} 53... g4
{[%clk 0:12:36.9]} 54. a5 {[%clk 0:16:12.6]} 54... g3 {[%clk 0:12:41.4]} 55. a6
{[%clk 0:16:17.2]} 55... g2 {[%clk 0:12:45.8]} 56. Kb6 {[%clk 0:16:21.8]} 56...
g1=Q {[%clk 0:12:49.1]} 57. Kb7 {[%clk 0:16:25.9]} 57... Kf3 {[%clk 0:12:51.2]}
58. a7 {[%clk 0:16:29.7]} 58... Qxa7+ {[%clk 0:12:54]} 59. Kc6 {[%clk
0:16:33.4]} 59... Ra6+ {[%clk 0:12:56.4]} 60. Kd5 {[%clk 0:16:38.3]} 60... Qb7+
{[%clk 0:13:00.4]} 61. Kc4 {[%clk 0:16:42.5]} 61... Rc6+ {[%clk 0:13:03.8]} 62.
Kd4 {[%clk 0:16:47.4]} 62... Qd7+ {[%clk 0:13:08.1]} 63. Ke5 {[%clk 0:16:51.9]}
63... Re6+ {[%clk 0:13:11.8]} 64. Kf5 {[%clk 0:16:56.6]} 64... Qf7+ {[%clk
0:13:16.7]} 65. Kg5 {[%clk 0:17:01.2]} 65... Rf6 {[%clk 0:13:21.6]} 66. Kh4
{[%clk 0:17:05.3]} 66... Qg7 {[%clk 0:13:17.5]} 67. Kh5 {[%clk 0:17:07.2]} 67...
Rh6# {[%clk 0:13:20.5]} 0-1